fUST/lending_fUST_20251226
["ID","MTS","AMOUNT","RATE_DAILY","PERIOD"]
[399813790,1766694633102,-560.0,0.0001589,2]
[399813791,1766694633111,-198.83345569,0.000159,2]
[399813792,1766694633120,-198.83345565,0.000159,2]
[399813793,1766694633130,-198.83345565,0.00016064,2]
[399813794,1766694633140,-1363.0,0.00016131,2]
[399813795,1766694633149,-2160.0,0.00016131,2]
[399813796,1766694633161,-416.0,0.00016131,2]
[399813797,1766694633171,-660.0,0.00016438,2]
[399813798,1766694633180,-600.0,0.00016438,2]
[399813799,1766694633190,-198.83345565,0.00016612,2]
[399813800,1766694633199,-760.0,0.00016986,2]
[399813801,1766694633209,-610.85825072,0.00017046,2]
[399813802,1766694633218,-1099.54485129,0.00017046,2]
[399813803,1766694633228,-1954.74640229,0.00017046,2]
[399813804,1766694633237,-198.83345565,0.0001716,2]
[399813805,1766694633247,-156.9,0.000172,2]
[399813806,1766694633256,-860.0,0.00017534,2]
[399813807,1766694633267,-3054.29125358,0.00017671,2]
[399813808,1766694633278,-198.83345565,0.00017708,2]
[399813809,1766694633288,-250000.0,0.000178,3]
[399813810,1766694633299,-400.0,0.00017808,2]
[399813811,1766694633309,-526.53910931,0.00017852,2]
[399813812,1766694633318,-19250.05700268,0.00017973,2]
[399813813,1766694633399,175.0,0.00030034,120]
[399813814,1766694634390,175.0,0.00031536,120]
[399813833,1766694637922,-500.0,8.234e-05,2]
[399813835,1766694637934,-71.7923404,8.234e-05,2]
[399813836,1766694637948,-137.96014244,8.234e-05,2]
[399813838,1766694637960,-390.78156496,8.234e-05,2]
[399813841,1766694637971,-500.0,0.00010959,2]
[399813842,1766694637981,-397.81038724,0.00010959,2]
[399813843,1766694637992,-500.0,0.00010959,2]
[399813844,1766694638002,-500.0,0.00010959,2]
[399813845,1766694638013,-1474.99551312,0.00017973,2]
[399813846,1766694638024,-7837.21926158,0.0001799,2]
[399813847,1766694638038,-961.71379467,0.0001799,2]
[399813848,1766694638052,-1703.45085993,0.0001799,2]
[399813849,1766694638065,-3032.07899266,0.0001799,2]
[399813850,1766694638078,-435.0,0.0001799,2]
[399813851,1766694638092,-2472.99554256,0.0001799,2]
[399813852,1766694638108,-562.31420507,0.0001799,2]
[399813892,1766694640296,-733.73686278,0.0001799,2]
[399813894,1766694640309,-890.80323467,0.0001799,2]
[399813896,1766694640323,-528.89051107,0.0001799,2]
[399813899,1766694640336,-3080.82232218,0.0001799,2]
[399814166,1766694643086,-420.0,0.0001799,2]
[399814188,1766694643301,-1959.42071875,0.0001799,2]
[399814416,1766694645991,-441.19,0.0001799,2]
[399814417,1766694646048,-2357.72674961,0.0001799,2]
[399814419,1766694646160,-778.77913156,0.0001799,2]
[399814421,1766694646174,-907.21964252,0.0001799,2]
[399814430,1766694905199,163.0,0.00029831,120]
[399814431,1766694906557,163.0,0.00031322,120]
[399814438,1766695080095,253.43,2.997e-05,2]
[399814466,1766695831941,-5000.0,4.802e-05,2]
[399814468,1766695831952,-156.9,5e-05,2]
[399814470,1766695831963,-150.0,5.877e-05,2]
[399814472,1766695831975,-247.43,6.157e-05,2]
[399814474,1766695831986,-371.15,6.437e-05,2]
[399814476,1766695831996,-494.86,6.717e-05,2]
[399814479,1766695832012,-618.58,6.997e-05,2]
[399814481,1766695832023,-742.3,7.276e-05,2]
[399814483,1766695832034,-1200.0,7.554e-05,2]
[399814485,1766695832044,-866.01,7.556e-05,2]
[399814487,1766695832055,-300.0,7.834e-05,2]
[399814489,1766695832066,-989.73,7.836e-05,2]
[399814492,1766695832077,-1113.44,8.116e-05,2]
[399814495,1766695832088,-1237.16,8.396e-05,2]
[399814498,1766695832100,-156.9,8.5e-05,2]
[399814500,1766695832111,-156.9,0.00012,2]
[399814502,1766695832122,-1041.66666667,0.00012516,2]
[399814505,1766695832132,-160.0,0.00012516,2]
[399814507,1766695832143,-190.0,0.00012849,3]
[399814509,1766695832155,-1000.0,0.00013699,2]
[399814511,1766695832166,-156.9,0.000155,2]
[399814513,1766695832176,-165.0,0.00016685,3]
[399814515,1766695832186,-151.0,0.00016979,2]
[399814517,1766695832198,-500.0,0.00016979,2]
[399814519,1766695832208,-478.75725327,0.00016979,2]
[399814521,1766695832220,-151.0,0.00016979,2]
[399814523,1766695832231,-500.0,0.00016979,2]
[399814525,1766695832242,-151.0,0.00016979,2]
[399814527,1766695832252,-151.0,0.00016979,2]
[399814530,1766695832263,-151.0,0.00016979,2]
[399814532,1766695832274,-151.0,0.00016979,2]
[399814533,1766695832284,-151.0,0.00016979,2]
[399814536,1766695832294,-151.0,0.00016979,2]
[399814538,1766695832304,-151.0,0.00016979,2]
[399814540,1766695832314,-151.0,0.00016979,2]
[399814542,1766695832325,-151.0,0.00016979,2]
[399814543,1766695832334,-151.0,0.00016979,2]
[399814545,1766695832344,-151.0,0.00016979,2]
[399814548,1766695832355,-500.0,0.00016989,2]
[399814550,1766695832366,-623.54709547,0.00016989,2]
[399814552,1766695832377,-328.46727107,0.00016989,2]
[399814554,1766695832389,-500.0,0.00016989,2]
[399814556,1766695832401,-500.0,0.00016989,2]
[399814558,1766695832412,-289.16845816,0.00016989,2]
[399814560,1766695832422,-500.0,0.00016989,2]
[399814562,1766695832432,-531.28644472,0.00016989,2]
[399814564,1766695832443,-500.0,0.00016989,2]
[399814566,1766695832453,-500.0,0.00016989,2]
[399814568,1766695832464,-459.88276219,0.00016989,2]
[399814570,1766695832475,-100000.0,0.0001699,2]
[399814572,1766695832485,-201.0355559,0.00017315,2]
[399814574,1766695832496,-302.9931996,0.00017452,2]
[399814577,1766695832510,-302.9931996,0.00017452,2]
[399814579,1766695832520,-302.9931996,0.00017452,2]
[399814581,1766695832531,-302.9931996,0.00017452,2]
[399814583,1766695832541,-302.9931996,0.00017452,2]
[399814585,1766695832551,-496.47127164,0.00017527,2]
[399814587,1766695832561,-2440.23427299,0.00017634,2]
[399814589,1766695832571,-4443.5127177,0.00017707,2]
[399814591,1766695832581,-6908.16479005,0.00017798,2]
[399814593,1766695832591,-6908.16479005,0.00017798,2]
[399814595,1766695832601,-27486.83410078,0.000178,3]
[399814596,1766695832612,-947.77039676,0.0001785,2]
[399814597,1766695832622,-1684.9251498,0.0001785,2]
[399814598,1766695832633,-2632.69554656,0.0001785,2]
[399814599,1766695832642,-3787.29050545,0.0001785,2]
[399814600,1766695832652,-159.06676452,0.00017879,2]
[399814601,1766695832663,-99157.33290718,0.0001789,2]
[399814604,1766695832677,-579.44845966,0.0001789,2]
[399814606,1766695832689,-1423.00869472,0.0001789,2]
[399814806,1766695838031,-5502.1121329,0.0001789,2]
[399814808,1766695838087,-2888.0872181,0.0001789,2]
[399814810,1766695838099,-4247.00643768,0.0001789,2]
[399814811,1766695838111,-776.68808795,0.0001789,2]
[399814812,1766695838123,-19037.16580179,0.0001789,2]
[399814850,1766695840224,-31405.85511529,0.0001789,2]
[399814852,1766695840236,-479.93791128,0.0001789,2]
[399814932,1766696106895,197.0,0.00029629,120]
[399814934,1766696129935,167.0,0.00027742,120]
[399814935,1766696131324,167.0,0.00029129,120]
[399814936,1766696132534,167.0,0.00030585,120]
[399814937,1766696240792,5000.0,6e-05,10]
[399814938,1766696249098,5000.0,6e-05,10]
[399814941,1766696409778,185.0,0.00028777,120]
[399814942,1766696411066,185.0,0.00030215,120]
[399814943,1766696412418,185.0,0.00031726,120]
[399814944,1766696428253,199.0,0.00027437,120]
[399814949,1766696475575,387.175905,0.00030137,120]
[399814952,1766696674537,5000.0,6e-05,10]
[399814954,1766696705815,185.0,0.00028786,120]
[399814955,1766696742498,165.559056,8.842e-05,120]
[399814958,1766696887200,177.41,2.997e-05,3]
[399814960,1766697020630,1166.79788924,0.000328,120]
[399815016,1766697033166,-967.1592,4.778e-05,2]
[399815017,1766697033482,-4032.8408,4.778e-05,2]
[399815018,1766697033494,-150.0,4.851e-05,2]
[399815019,1766697033505,-393.74701179,4.875e-05,2]
[399815020,1766697033515,-156.9,5e-05,2]
[399815021,1766697033526,-1200.0,5.981e-05,2]
[399815022,1766697033536,-300.0,5.982e-05,2]
[399815023,1766697033546,-300.0,5.982e-05,2]
[399815024,1766697033556,-300.0,5.982e-05,2]
[399815025,1766697033566,-300.0,5.982e-05,2]
[399815026,1766697033576,-1200.0,5.983e-05,2]
[399815027,1766697033586,-1680.0,6.579e-05,2]
[399815028,1766697033596,-300.0,6.58e-05,2]
[399815029,1766697033605,-420.0,6.58e-05,2]
[399815030,1766697033615,-300.0,6.58e-05,2]
[399815031,1766697033625,-545.0,6.581e-05,2]
[399815032,1766697033635,-16298.77832537,6.581e-05,2]
[399815033,1766697033645,-211.21634133,6.851e-05,2]
[399815034,1766697033655,-500.0,6.896e-05,2]
[399815035,1766697033665,-500.0,6.896e-05,2]
[399815036,1766697033675,-500.0,6.897e-05,2]
[399815037,1766697033686,-500.0,6.897e-05,2]
[399815038,1766697033696,-500.0,6.897e-05,2]
[399815039,1766697033707,-500.0,6.897e-05,2]
[399815040,1766697033720,-500.0,6.897e-05,2]
[399815041,1766697033730,-500.0,6.897e-05,2]
[399815042,1766697033740,-264.88923422,6.897e-05,2]
[399815043,1766697033764,-292.40345087,6.896e-05,2]
[399815054,1766697038187,-325.43490216,6.896e-05,2]
[399815055,1766697038199,-165.559056,8.842e-05,2]
[399815057,1766697038210,-150.0,9.365e-05,2]
[399815058,1766697038221,-150.0,9.811e-05,2]
[399815059,1766697038231,-150.0,0.00010257,2]
[399815060,1766697038241,-150.0,0.00010703,2]
[399815061,1766697038251,-429.92708975,0.00010959,2]
[399815063,1766697038275,-500.0,0.00010959,2]
[399815064,1766697038293,-183.9,0.00011149,2]
[399815065,1766697038312,-220.68,0.00011595,2]
[399815066,1766697038324,-156.9,0.00012,2]
[399815067,1766697038336,-257.46,0.00012041,2]
[399815068,1766697038349,-294.24,0.00012487,2]
[399815069,1766697038362,-248.95,0.00012804,3]
[399815070,1766697038375,-164.99,0.00012804,3]
[399815071,1766697038387,-165.0,0.00012904,3]
[399815072,1766697038400,-331.02,0.00012933,2]
[399815073,1766697038412,-367.8,0.00013379,2]
[399815074,1766697038424,-268.825416,0.00015068,2]
[399815075,1766697038438,-10000.0,0.00015988,2]
[399815076,1766697038449,-100000.0,0.0001599,2]
[399815077,1766697038461,-160.0,0.00016,2]
[399815078,1766697038474,-2743.56550551,0.00016245,2]
[399815079,1766697038486,-302.9931996,0.00016548,2]
[399815080,1766697038497,-302.9931996,0.00016548,2]
[399815081,1766697038509,-302.9931996,0.00016548,2]
[399815082,1766697038520,-302.9931996,0.00016548,2]
[399815083,1766697038531,-302.9931996,0.00016548,2]
[399815084,1766697038541,-260.0,0.00016548,2]
[399815085,1766697038552,-150.0,0.0001656,2]
[399815086,1766697038562,-150.0,0.0001656,2]
[399815087,1766697038573,-302.9931996,0.0001663,2]
[399815088,1766697038584,-302.9931996,0.0001663,2]
[399815089,1766697038595,-302.9931996,0.00016978,2]
[399815090,1766697038606,-360.0,0.00017096,2]
[399815091,1766697038618,-1921.81654978,0.000171,2]
[399815092,1766697038628,-302.9931996,0.00017178,2]
[399815093,1766697038639,-159.06676452,0.00017226,2]
[399815094,1766697038650,-608.6274177,0.00017315,2]
[399815095,1766697038660,-302.9931996,0.0001737,2]
[399815096,1766697038671,-302.9931996,0.0001737,2]
[399815097,1766697038682,-302.9931996,0.0001737,2]
[399815098,1766697038693,-302.9931996,0.0001737,2]
[399815099,1766697038706,-302.9931996,0.0001737,2]
[399815100,1766697038716,-302.9931996,0.0001737,2]
[399815101,1766697038727,-302.9931996,0.0001737,2]
[399815102,1766697038738,-302.9931996,0.0001737,2]
[399815103,1766697038750,-302.9931996,0.0001737,2]
[399815104,1766697038766,-302.9931996,0.0001737,2]
[399815105,1766697038779,-302.9931996,0.0001737,2]
[399815106,1766697038790,-302.9931996,0.0001737,2]
[399815107,1766697038802,-302.9931996,0.0001737,2]
[399815108,1766697038813,-302.9931996,0.0001737,2]
[399815109,1766697038824,-302.9931996,0.0001737,2]
[399815110,1766697038835,-460.0,0.00017644,2]
[399815111,1766697038848,-478.75725327,0.00017799,3]
[399815112,1766697038860,-496.47127164,0.00017799,3]
[399815113,1766697038871,-514.84070869,0.00017799,3]
[399815114,1766697038882,-533.88981491,0.00017799,3]
[399815115,1766697038893,-553.64373807,0.00017799,3]
[399815116,1766697038904,-574.12855637,0.00017799,3]
[399815117,1766697038915,-595.37131296,0.00017799,3]
[399815118,1766697038927,-617.40005154,0.00017799,3]
[399815119,1766697038938,-241.35019636,0.00017799,3]
[399815120,1766697038950,-159.0,0.00017836,3]
[399815121,1766697038962,-155.0,0.0001789,2]
[399815122,1766697038974,-155.0,0.0001789,2]
[399815123,1766697038986,-155.0,0.0001789,2]
[399815124,1766697038997,-155.0,0.0001789,2]
[399815125,1766697039008,-155.0,0.0001789,2]
[399815126,1766697039020,-155.0,0.0001789,2]
[399815127,1766697039031,-155.0,0.0001789,2]
[399815128,1766697039042,-155.0,0.0001789,2]
[399815129,1766697039053,-155.0,0.0001789,2]
[399815130,1766697039064,-155.0,0.0001789,2]
[399815131,1766697039074,-155.0,0.0001789,2]
[399815132,1766697039085,-155.0,0.0001789,2]
[399815133,1766697039095,-155.0,0.0001789,2]
[399815134,1766697039107,-155.0,0.0001789,2]
[399815135,1766697039118,-155.0,0.0001789,2]
[399815136,1766697039129,-155.0,0.0001789,2]
[399815137,1766697039139,-155.0,0.0001789,2]
[399815138,1766697039150,-155.0,0.0001789,2]
[399815139,1766697039160,-155.0,0.0001789,2]
[399815140,1766697039170,-155.0,0.0001789,2]
[399815141,1766697039181,-155.0,0.0001789,2]
[399815142,1766697039192,-155.0,0.0001789,2]
[399815143,1766697039203,-155.0,0.0001789,2]
[399815144,1766697039214,-155.0,0.0001789,2]
[399815145,1766697039225,-155.0,0.0001789,2]
[399815146,1766697039236,-155.0,0.0001789,2]
[399815147,1766697039247,-155.0,0.0001789,2]
[399815148,1766697039258,-155.0,0.0001789,2]
[399815149,1766697039268,-155.0,0.0001789,2]
[399815150,1766697039278,-155.0,0.0001789,2]
[399815151,1766697039289,-155.0,0.0001789,2]
[399815152,1766697039299,-170.66569156,0.0001789,2]
[399815153,1766697039310,-1000.0,0.00018,2]
[399815154,1766697039321,-598.9812996,0.00018137,2]
[399815155,1766697039332,-598.9812996,0.00018137,2]
[399815156,1766697039342,-598.9812996,0.00018137,2]
[399815157,1766697039353,-598.9812996,0.00018137,2]
[399815158,1766697039364,-598.9812996,0.00018137,2]
[399815159,1766697039375,-598.9812996,0.00018137,2]
[399815160,1766697039385,-598.9812996,0.00018137,2]
[399815161,1766697039396,-598.9812996,0.00018137,2]
[399815162,1766697039407,-598.9812996,0.00018137,2]
[399815163,1766697039417,-598.9812996,0.00018137,2]
[399815164,1766697039428,-598.9812996,0.00018137,2]
[399815165,1766697039439,-598.9812996,0.00018137,2]
[399815166,1766697039449,-598.9812996,0.00018137,2]
[399815167,1766697039459,-598.9812996,0.00018137,2]
[399815168,1766697039469,-598.9812996,0.00018137,2]
[399815169,1766697039479,-598.9812996,0.00018137,2]
[399815170,1766697039490,-598.9812996,0.00018137,2]
[399815171,1766697039500,-598.9812996,0.00018137,2]
[399815172,1766697039510,-598.9812996,0.00018137,2]
[399815173,1766697039521,-598.9812996,0.00018137,2]
[399815174,1766697039531,-560.0,0.00018192,2]
[399815175,1766697039540,-159.06676452,0.00018487,2]
[399815176,1766697039551,-268.825416,0.00018493,2]
[399815177,1766697039561,-1000.0,0.000185,2]
[399815178,1766697039571,-601.36984783,0.0001862,2]
[399815179,1766697039582,-660.0,0.0001874,2]
[399815180,1766697039592,-303.00000303,0.000189,2]
[399815181,1766697039602,-302.96970909,0.000189,2]
[399815182,1766697039613,-156.9,0.000189,2]
[399815183,1766697039623,-32469.34588868,0.00019,2]
[399815184,1766697039633,-2603.49,0.00019,2]
[399815185,1766697039644,-17918.95050538,0.00019,2]
[399815186,1766697039655,-18000.0,0.00019,2]
[399815187,1766697039667,-1044.23253827,0.00019,3]
[399815188,1766697039677,-1000.0,0.00019,2]
[399815189,1766697039687,-303.00000303,0.00019089,2]
[399815190,1766697039698,-302.96970909,0.00019089,2]
[399815191,1766697039708,-150.0,0.00019178,2]
[399815192,1766697039721,-300.0,0.00019178,2]
[399815193,1766697039731,-450.0,0.00019178,2]
[399815194,1766697039742,-600.0,0.00019178,2]
[399815195,1766697039752,-40.96879682,0.00019178,2]
[399815196,1766697039767,-446.55,0.00019178,2]
[399815197,1766697039780,-262.48120318,0.00019178,2]
[399815198,1766697039790,-831.39490276,0.00019178,2]
[399815199,1766697039800,-151.0,0.00019178,2]
[399815200,1766697039811,-150.0,0.00019178,2]
[399815201,1766697039821,-515.58,0.000192,2]
[399815202,1766697039831,-134.64343648,0.000192,2]
[399815203,1766697039843,-6395.71012933,0.000192,2]
[399815240,1766697040568,-500.0,6.58e-05,2]
[399815242,1766697040578,-489.07248354,6.58e-05,2]
[399815244,1766697040587,-198.73641632,6.58e-05,2]
[399815246,1766697040597,-366.66915171,6.58e-05,2]
[399815469,1766697043338,-133.33084829,6.58e-05,2]
[399815470,1766697043349,-190.56398229,6.58e-05,2]
[399815471,1766697043447,-266.53501451,6.58e-05,2]
[399815472,1766697043459,-42.9010032,6.58e-05,2]
[399815473,1766697043469,-500.0,6.58e-05,2]
[399815474,1766697043478,-500.0,6.58e-05,2]
[399815475,1766697043487,-500.0,6.58e-05,2]
[399815476,1766697043497,-500.0,6.58e-05,2]
[399815477,1766697043507,-351.51612535,6.58e-05,2]
[399815478,1766697043516,-433.869409,6.58e-05,2]
[399815479,1766697043533,-500.0,6.58e-05,2]
[399815480,1766697043548,-500.0,6.58e-05,2]
[399815481,1766697043558,-500.0,6.58e-05,2]
[399815482,1766697043567,-500.0,6.58e-05,2]
[399815483,1766697043577,-305.0,6.58e-05,2]
[399815484,1766697043587,-500.0,6.58e-05,2]
[399815485,1766697043597,-203.66500417,6.58e-05,2]
[399815486,1766697043606,-500.0,6.58e-05,2]
[399815487,1766697043616,-500.0,6.58e-05,2]
[399815488,1766697043625,-500.0,6.58e-05,2]
[399815490,1766697043636,-500.0,6.58e-05,2]
[399815492,1766697043646,-390.69405177,6.58e-05,2]
[399815494,1766697043658,-109.30594823,6.58e-05,2]
[399815495,1766697043667,-500.0,6.58e-05,2]
[399815497,1766697043677,-500.0,6.58e-05,2]
[399815499,1766697043687,-500.0,6.58e-05,2]
[399815501,1766697043696,-500.0,6.58e-05,2]
[399815502,1766697043707,-500.0,6.58e-05,2]
[399815503,1766697043717,-500.0,6.58e-05,2]
[399815505,1766697043728,-500.0,6.58e-05,2]
[399815507,1766697043738,-500.0,6.58e-05,2]
[399815509,1766697043748,-500.0,6.58e-05,2]
[399815511,1766697043758,-500.0,6.58e-05,2]
[399815513,1766697043767,-500.0,6.58e-05,2]
[399815514,1766697043778,-500.0,6.58e-05,2]
[399815516,1766697043788,-500.0,6.58e-05,2]
[399815518,1766697043798,-500.0,6.58e-05,2]
[399815520,1766697043807,-500.0,6.58e-05,2]
[399815521,1766697043817,-500.0,6.58e-05,2]
[399815522,1766697043827,-500.0,6.58e-05,2]
[399815524,1766697043837,-500.0,6.58e-05,2]
[399815526,1766697043847,-500.0,6.58e-05,2]
[399815528,1766697043858,-500.0,6.58e-05,2]
[399815530,1766697043869,-500.0,6.58e-05,2]
[399815531,1766697043879,-500.0,6.58e-05,2]
[399815532,1766697043889,-500.0,6.58e-05,2]
[399815533,1766697043898,-500.0,6.58e-05,2]
[399815534,1766697043908,-500.0,6.58e-05,2]
[399815535,1766697043918,-500.0,6.58e-05,2]
[399815536,1766697043928,-500.0,6.58e-05,2]
[399815537,1766697043937,-500.0,6.58e-05,2]
[399815538,1766697043947,-500.0,6.58e-05,2]
[399815539,1766697043957,-200.0,6.58e-05,2]
[399815540,1766697043967,-500.0,6.58e-05,2]
[399815541,1766697043977,-500.0,6.58e-05,2]
[399815542,1766697043987,-500.0,6.58e-05,2]
[399815543,1766697043996,-500.0,6.58e-05,2]
[399815544,1766697044006,-500.0,6.58e-05,2]
[399815545,1766697044015,-500.0,6.58e-05,2]
[399815546,1766697044024,-500.0,6.58e-05,2]
[399815547,1766697044034,-500.0,6.58e-05,2]
[399815548,1766697044043,-302.9931996,0.00016548,2]
[399815549,1766697044054,-598.9812996,0.00017315,2]
[399815550,1766697044064,-26379.20643419,0.000192,2]
[399815551,1766697044074,-5646.37,0.000192,2]
[399815552,1766697044084,-166.19,0.000192,2]
[399815553,1766697044095,-151.0,0.000192,2]
[399815554,1766697044105,-219.653392,0.000192,2]
[399815555,1766697044114,-219.653392,0.000192,2]
[399815556,1766697044124,-219.653392,0.000192,2]
[399815557,1766697044133,-219.653392,0.000192,2]
[399815558,1766697044143,-8229.273279,0.000192,2]
[399815559,1766697044152,-8229.273279,0.000192,2]
[399815560,1766697044163,-8229.273279,0.000192,2]
[399815561,1766697044173,-8229.273279,0.000192,2]
[399815562,1766697044183,-3114.56687945,0.00019205,5]
[399815563,1766697044193,-303.00000303,0.00019278,2]
[399815564,1766697044203,-302.96970909,0.00019278,2]
[399815565,1766697044212,-760.0,0.00019288,2]
[399815566,1766697044222,-300.0,0.00019315,2]
[399815567,1766697044231,-151.0,0.00019452,2]
[399815568,1766697044241,-450.0,0.00019452,2]
[399815569,1766697044251,-303.00000303,0.00019467,2]
[399815570,1766697044261,-302.96970909,0.00019467,2]
[399815571,1766697044271,-6000.0,0.000195,2]
[399815572,1766697044281,-1000.0,0.000195,2]
[399815573,1766697044290,-600.0,0.00019589,2]
[399815574,1766697044300,-303.00000303,0.00019656,2]
[399815575,1766697044309,-302.96970909,0.00019656,2]
[399815576,1766697044319,-705.0410106,0.00019726,2]
[399815577,1766697044328,-159.06676452,0.00019749,2]
[399815578,1766697044338,-1201.501869,0.0001976,5]
[399815579,1766697044347,-1000.0,0.0001978,5]
[399815580,1766697044357,-1000.0,0.000198,5]
[399815581,1766697044367,-151.0,0.000198,2]
[399815582,1766697044379,-5000.0,0.000198,30]
[399815583,1766697044389,-5000.0,0.000198,30]
[399815584,1766697044399,-4921.54090716,0.000198,30]
[399815585,1766697044412,-78.45909284,0.000198,30]
[399815586,1766697044421,-5000.0,0.000198,30]
[399815587,1766697044431,-5000.0,0.000198,30]
[399815588,1766697044441,-5000.0,0.000198,30]
[399815589,1766697044450,-5000.0,0.000198,30]
[399815590,1766697044460,-5000.0,0.000198,30]
[399815591,1766697044469,-5000.0,0.000198,30]
[399815592,1766697044479,-5000.0,0.000198,30]
[399815593,1766697044488,-5000.0,0.000198,30]
[399815594,1766697044498,-3855.84727391,0.000198,30]
[399815608,1766697081427,3409.0,0.00032877,120]
[399815609,1766697237726,500.0,0.00032877,120]
[399815610,1766697247564,500.0,0.00032877,120]
[399815612,1766697483845,500.0,0.00032877,120]
[399815613,1766697501298,500.0,0.00032877,120]
[399815621,1766697510160,300.0,0.00032877,120]
[399815633,1766698130187,500.0,0.00032876,120]
[399815634,1766698130419,500.0,0.00032876,120]
[399815635,1766698130657,500.0,0.00032876,120]
[399815636,1766698130890,500.0,0.00032876,120]
[399815637,1766698132096,500.0,0.00032876,120]
[399815638,1766698132275,500.0,0.00032876,120]
[399815639,1766698132688,500.0,0.00032876,120]
[399815640,1766698132923,500.0,0.00032876,120]
[399815641,1766698133161,497.48191502,0.00032876,120]
[399815674,1766698232972,-156.9,5e-05,2]
[399815675,1766698232983,-150.0,5.097e-05,2]
[399815676,1766698232993,-150.0,5.373e-05,2]
[399815677,1766698233004,-150.0,5.628e-05,2]
[399815678,1766698233015,-150.0,5.901e-05,2]
[399815679,1766698233025,-150.0,6.158e-05,2]
[399815680,1766698233035,-300.0,6.57e-05,2]
[399815681,1766698233045,-273.100025,6.57e-05,2]
[399815682,1766698233062,-675.899975,6.57e-05,2]
[399815683,1766698233072,-500.0,6.57e-05,2]
[399815684,1766698233083,-200.80541319,6.57e-05,2]
[399815695,1766698238397,-98.75060938,6.57e-05,2]
[399815696,1766698238408,-500.0,6.57e-05,2]
[399815697,1766698238418,-500.0,6.57e-05,2]
[399815698,1766698238428,-499.99436001,6.57e-05,2]
[399815699,1766698238439,-500.0,6.57e-05,2]
[399815700,1766698238449,-148.06278541,6.57e-05,2]
[399815701,1766698238462,-351.93721459,6.57e-05,2]
[399815702,1766698238472,-500.0,6.57e-05,2]
[399815703,1766698238482,-500.0,6.57e-05,2]
[399815704,1766698238681,-500.0,6.57e-05,2]
[399815705,1766698238691,-500.0,6.57e-05,2]
[399815706,1766698238702,-500.0,6.57e-05,2]
[399815707,1766698238712,-500.0,6.57e-05,2]
[399815708,1766698238722,-500.0,6.57e-05,2]
[399815709,1766698238732,-389.94511854,6.57e-05,2]
[399815710,1766698238742,-500.0,6.57e-05,2]
[399815711,1766698238752,-500.0,6.57e-05,2]
[399815712,1766698238763,-564.23146883,6.57e-05,2]
[399815713,1766698238773,-500.0,6.57e-05,2]
[399815714,1766698238783,-500.0,6.57e-05,2]
[399815715,1766698238793,-500.0,6.57e-05,2]
[399815716,1766698238803,-500.0,6.57e-05,2]
[399815717,1766698238815,-500.0,6.57e-05,2]
[399815718,1766698238826,-500.0,6.57e-05,2]
[399815719,1766698238836,-500.0,6.57e-05,2]
[399815720,1766698238846,-500.0,6.57e-05,2]
[399815721,1766698238856,-500.0,6.57e-05,2]
[399815722,1766698238866,-500.0,6.57e-05,2]
[399815723,1766698238876,-500.0,6.57e-05,2]
[399815724,1766698238886,-500.0,6.57e-05,2]
[399815725,1766698238896,-500.0,6.57e-05,2]
[399815726,1766698238907,-500.0,6.57e-05,2]
[399815727,1766698238917,-500.0,6.57e-05,2]
[399815728,1766698238927,-500.0,6.57e-05,2]
[399815729,1766698238937,-500.0,6.57e-05,2]
[399815730,1766698238947,-500.0,6.57e-05,2]
[399815731,1766698238957,-500.0,6.57e-05,2]
[399815732,1766698238967,-500.0,6.57e-05,2]
[399815733,1766698238977,-500.0,6.57e-05,2]